Cogmind - Beta 13 @@@ ROGUE MODE // 2024.04.11 @ 17:22:54 Player: Pepsi Result: Destroyed by Y-45 Defender with Heavy Assault Rifle Performance ------------- Evolutions (1) 500 Regions Visited (3) 600 Robots Destroyed (19) 95 Value Destroyed (463) 463 Prototype IDs (4) 80 Alien Tech Used (0) 0 Bonus (38) 38 TOTAL SCORE: 1776 Bonus ------- High Alert Combat Kills 38 Cogmind --------- Core Integrity 0/400 Matter 65/300 Energy 79/100 System Corruption 1% Temperature Danger (463) Movement Flying (110) Ox1 Location -9/Materials Parts ------- > --- POWER (1) -------- (None) > --- PROPULSION (3) --- Improved Flight Unit > --- UTILITY (3) ------ Small Storage Unit Visual Processing Unit > --- WEAPON (2) ------- Shotgun > --- INVENTORY (8) ---- Sensor Array Terrain Scan Processor Shield Generator Shotgun Light Cannon Peak State ------------ > --- POWER ------------ Light Ion Engine > --- PROPULSION ------- Improved Flight Unit Improved Flight Unit Improved Flight Unit > --- UTILITY ---------- Small Storage Unit Visual Processing Unit > --- WEAPON ----------- Advanced Beam Cannon Shotgun > --- INVENTORY -------- Light Ion Engine Sensor Array Terrain Scan Processor Shield Generator Autogun Shotgun Light Cannon [Rating: 19] Favorites ----------- Power Light Ion Engine Engine Light Ion Engine Propulsion Improved Flight Unit Wheel Wheel Flight Unit Improved Flight Unit Utility Small Storage Unit Device Sensor Array Storage Small Storage Unit Processor Visual Processing Unit Weapon EM Pulse Gun Energy Gun EM Pulse Gun Energy Cannon Advanced Beam Cannon Ballistic Gun Shotgun Ballistic Cannon Light Cannon Build | -11 -10 -10 -9 ------- Run | Yrd Mat Min Mat Slots Evolved 2 | . . . 2 Power . | . . . . Propulsion 1 | . . . 1 Utility 1 | . . . 1 Weapon . | . . . . Parts Attached 38 | 6 6 8 18 Power 4 | 1 . 1 2 Engine 4 | 1 . 1 2 Core . | . . . . Reactor . | . . . . Propulsion 7 | 2 2 . 3 Treads . | . . . . Leg . | . . . . Wheel 2 | 2 . . . Hover . | . . . . Flight 5 | . 2 . 3 Utility 4 | 1 1 . 2 Device 2 | . . . 2 Storage 1 | 1 . . . Processor 1 | . 1 . . Hackware . | . . . . Protection . | . . . . Artifact . | . . . . Weapon 23 | 2 3 7 11 Energy Gun 6 | 1 1 3 1 Energy Cannon 5 | . . . 5 Ballistic Gun 8 | 1 2 1 4 Ballistic Cannon 4 | . . 3 1 Launcher . | . . . . Special Weapon . | . . . . Impact Weapon . | . . . . Slashing Weapon . | . . . . Piercing Weapon . | . . . . Special Melee Weapon . | . . . . Unidentified Prototypes 2 | . 1 . 1 Parts Lost 11 | . . 1 10 Power 3 | . . . 3 Propulsion 3 | . . . 3 Utility . | . . . . Weapon 5 | . . 1 4 Highest Loss Streak 6 | . . 1 6 To Critical Strikes . | . . . . Average Slot Usage (%) 85 | . 90 85 81 Engine 11 | . 14 14 5 Wheel 5 | . 15 . . Flight 23 | . 12 28 31 Device 1 | . . . 3 Storage 13 | . 14 14 11 Processor 12 | . 11 14 11 Energy Gun 9 | . 12 12 4 Ballistic Gun 6 | . 9 . 9 Ballistic Cannon 1 | . . 1 2 Naked Turns . | . . . . Heaviest Build 14 | 12 12 10 14 Greatest Support 26 | 26 26 10 15 Greatest Overweight (x) 2 | 2 . . . Average Overweight (x) . | . . . . Largest Inventory Capacity 8 | 8 8 8 8 Average Capacity 7 | 6 8 8 8 Most Carried 8 | 6 8 8 8 Average Carried 6 | 2 4 7 6 Final Capacity 8 | 8 8 8 8 Final Carried 8 | 2 8 8 5 Class Distribution -------------------- 100% | Mutant Dominant Class ---------------- Mutant | -10/Materials Mutant | -10/Mines Mutant | -9/Materials Resources | -11 -10 -10 -9 ----------- Run | Yrd Mat Min Mat Matter Collected 532 | 108 58 109 257 Remotely . | . . . . Salvage Created 394 | . 73 62 259 Parts 43 | . 8 10 25 Haulers Intercepted . | . . . . Recyclers Shooed . | . . . . Parts Field Recycled . | . . . . Retrieved Matter . | . . . . Parts Self-Destructed . | . . . . Prevented . | . . . . Kills | -11 -10 -10 -9 ------- Run | Yrd Mat Min Mat Combat Hostiles Destroyed 14 | . 1 6 7 Guns 6 | . 1 3 2 Cannons 6 | . . 3 3 AOE 2 | . . . 2 Classes Destroyed 4 | . 2 . 2 Watcher 5 | . 3 . 2 Swarmer 7 | . 1 6 . Grunt 5 | . . . 5 Sentry 2 | . . . 2 Best Kill Streak 3 | . 2 3 3 Combat Bots Only 3 | . 1 3 3 Max Kills in Single Turn 2 | . 1 1 2 Gunslinging . | . . . . Exploded 2 | . . . 2 Melee . | . . . . Uniques/NPCs Destroyed . | . . . . Combat | -11 -10 -10 -9 -------- Run | Yrd Mat Min Mat Hostile Shots Fired 215 | . 6 57 152 Missed 85 | . 2 24 59 Damage Taken 1764 | . 37 256 1471 Core 471 | . 10 56 405 Absorbed by Shields 7 | . . . 7 Core Remaining (%) 86 | 100 . 73 . Volleys Fired 71 | . 9 27 35 Largest 2 | . 2 1 2 Hottest 136 | . 60 40 136 Shots Fired 105 | . 10 27 68 Gun 64 | . 10 12 42 Cannon 41 | . . 15 26 Launcher . | . . . . Special . | . . . . Kinetic 61 | . 2 20 39 Thermal 33 | . . 4 29 Explosive . | . . . . Electromagnetic 11 | . 8 3 . Robot Hit Streak 11 | . 3 3 11 Robot Miss Streak 5 | . 4 5 4 Penetration Max . | . . . . Secondary Targets . | . . . . Shots Hit Robots 63 | . 5 13 45 Core Hits 31 | . 4 6 21 Critical Kills . | . . . . Critical Parts Destroyed 1 | . . . 1 Critical Strikes 1 | . . . 1 Destroy 1 | . . . 1 Melee Attacks . | . . . . Impact . | . . . . Slashing . | . . . . Piercing . | . . . . Sneak Attacks . | . . . . Combat Hostiles . | . . . . Follow-up Attacks . | . . . . Damage Inflicted 1544 | . 91 187 1266 Guns 556 | . 91 76 389 Cannons 473 | . . 111 362 Explosions 515 | . . . 515 Melee . | . . . . Ramming . | . . . . Kinetic 579 | . 12 163 404 Thermal 874 | . . 12 862 Explosive . | . . . . Electromagnetic 91 | . 79 12 . Impact . | . . . . Slashing . | . . . . Piercing . | . . . . Highest Corruption 1 | . . . 1 Average Corruption 1 | . . . 1 Corruption Purged . | . . . . Corruption Blocked . | . . . . Effects 1 | . . . 1 Parts Rejected 1 | . . . 1 Overload Shots . | . . . . Overflow Damage 120 | . . . 120 Projectiles . | . . . . Explosions 120 | . . . 120 Melee . | . . . . Knockbacks 1 | . . 1 . Impact . | . . . . Kinetic 1 | . . 1 . Secondary . | . . . . Self-Inflicted Damage 186 | . . . 186 Shots 2 | . . . 2 Rammed . | . . . . Targets Rammed . | . . . . Kicked . | . . . . Crushed . | . . . . Highest Temperature 448 | . 16 16 448 Average Temperature 92 | . 7 9 113 Received Heat Transfer 661 | . 6 . 655 Effects 1 | . . . 1 Damage (minor) 1 | . . . 1 Siege Activations . | . . . . Robots Corrupted . | . . . . Combat Hostiles . | . . . . Parts Fried . | . . . . Impact Corruptions . | . . . . Robots Melted . | . . . . Combat Hostiles . | . . . . Parts Melted . | . . . . Heat Transferred 1043 | . . 25 1018 Parts Sabotaged . | . . . . Parts Stolen . | . . . . Parts Stripped . | . . . . Power Chain Reactions . | . . . . Alert | -11 -10 -10 -9 ------- Run | Yrd Mat Min Mat Peak Influence 568 | . 251 232 568 Initial 97 | . . 97 90 Average 162 | . 61 170 284 Maximum Alert Level 2 | . 1 1 2 Low Security (%) 62 | 100 95 54 30 Level 1 29 | . 4 45 42 Level 2 8 | . . . 26 Level 3 . | . . . . Level 4 . | . . . . Level 5 . | . . . . High Security . | . . . . Max Security . | . . . . Squads Dispatched 3 | . 1 1 1 Investigation 2 | . 1 1 . Extermination . | . . . . Reinforcement 1 | . . . 1 Assault . | . . . . Garrison . | . . . . Intercept . | . . . . Searches Triggered . | . . . . Construction Impeded 1 | . . . 1 Haulers Reinforced . | . . . . Active Scanning Responses . | . . . . Cargo Convoy Interrupts . | . . . . Stealth | -11 -10 -10 -9 --------- Run | Yrd Mat Min Mat Distress Signals 2 | . . . 2 Communications Jammed . | . . . . Distress Signals . | . . . . Times Spotted 41 | . 11 6 24 Peak Tracking Total 11 | . 7 3 11 Tactical Retreats 6 | . 2 . 4 Traps | -11 -10 -10 -9 ------- Run | Yrd Mat Min Mat Traps Triggered 2 | . 1 . 1 Indirectly . | . . . . Trap Hack Attempts . | . . . . Triggered . | . . . . Disarmed . | . . . . Reprogrammed . | . . . . Reused . | . . . . Traps Extracted . | . . . . Installed . | . . . . Triggered . | . . . . Machines | -11 -10 -10 -9 ---------- Run | Yrd Mat Min Mat Machines Disabled 4 | . . . 4 Max in Single Turn 3 | . . . 3 Machines Repaired . | . . . . Machines Dismantled . | . . . . Machines Sabotaged . | . . . . Overloaded Fab Kills . | . . . . Hacking | -11 -10 -10 -9 --------- Run | Yrd Mat Min Mat Machines Accessed 7 | . 4 1 2 Terminals 6 | . 3 1 2 Fabricators . | . . . . Repair Stations . | . . . . Recycling Units 1 | . 1 . . Scanalyzers . | . . . . Garrison Access . | . . . . Total Hacks 15 | . 9 3 3 Successful 5 | . 2 2 1 Failed 10 | . 7 1 2 Catastrophic 1 | . 1 . . Database Lockouts . | . . . . Manual . | . . . . Terminals 13 | . 7 3 3 Fabricators . | . . . . Repair Stations . | . . . . Recycling Units 2 | . 2 . . Scanalyzers . | . . . . Garrison Access . | . . . . Terminal Hacks 5 | . 2 2 1 Record 1 | . . 1 . Prototype ID Bank 1 | . 1 . . Alert Level 1 | . 1 . . Zone Layout 2 | . . 1 1 Fabricator Hacks . | . . . . Repair Station Hacks . | . . . . Recycling Unit Hacks . | . . . . Scanalyzer . | . . . . Garrison Access Hacks . | . . . . Unauthorized Hacks . | . . . . Terminals . | . . . . Fabricators . | . . . . Repair Stations . | . . . . Recycling Units . | . . . . Scanalyzers . | . . . . Garrison Access . | . . . . Data Cores Recovered . | . . . . Used . | . . . . Hacking Detections 5 | . 3 1 1 Full Trace Events 2 | . 1 1 . Feedback Events . | . . . . Feedback Blocked . | . . . . Robot Schematics Acquired . | . . . . Robots Built . | . . . . Authchips . | . . . . Time . | . . . . Total Robot Build Rating . | . . . . Part Schematics Acquired . | . . . . Parts Built . | . . . . Authchips . | . . . . Time . | . . . . Total Part Build Rating . | . . . . Parts Repaired . | . . . . Time . | . . . . Parts Recycled . | . . . . Recycled Matter . | . . . . Retrieved Matter . | . . . . Retrieved Components . | . . . . Parts Scanalyzed . | . . . . Part Schematics Acquired . | . . . . Parts Damaged . | . . . . Bothacking | -11 -10 -10 -9 ------------ Run | Yrd Mat Min Mat Used RIF Installer . | . . . . Robots Hacked . | . . . . Non-combat . | . . . . Combat . | . . . . Robot Hacks Applied . | . . . . Relay Couplers Released . | . . . . Fabnet Peak Effective % . | . . . . Robots Rewired . | . . . . Allies Hacked . | . . . . Hacks Repelled . | . . . . Allies | -11 -10 -10 -9 -------- Run | Yrd Mat Min Mat Total Allies . | . . . . Largest Group . | . . . . Highest-Rated Group . | . . . . Highest-Rated Ally . | . . . . Total Orders . | . . . . Ally Attacks . | . . . . Total Damage . | . . . . Kills . | . . . . Allies Corrupted . | . . . . Allies Melted . | . . . . Intel | -11 -10 -10 -9 ------- Run | Yrd Mat Min Mat Robot Analysis Total . | . . . . Derelict Logs Recovered 2 | . . 2 . Drone Launches . | . . . . Drone Recoveries . | . . . . Exploration | -11 -10 -10 -9 ------------- Run | Yrd Mat Min Mat Turns Passed 905 | 43 292 293 277 Spaces Moved 1498 | 38 424 601 435 Core 20 | 20 . . . Treads . | . . . . Legs . | . . . . Wheels 187 | 18 169 . . Hover . | . . . . Flight 1291 | . 255 601 435 Fastest Speed 34 | 50 37 37 34 Average Speed 43 | 79 58 37 34 Slowest Speed 150 | 150 90 37 37 Overloaded Moves . | . . . . Propulsion Burnouts . | . . . . Robots Hopped 13 | . 2 4 7 Cave-ins Triggered . | . . . . Exploration Rate (%) 48 | 3 60 94 38 Regions Visited 3 Branch Regions 1 Pre-discovered Areas 1 | . . 1 . Known Exits Taken . | . . . . Unknown Exits Taken 3 | 1 1 1 . Scrap Searched 1 | . . 1 . Spaces Dug . | . . . . Terrain Destroyed 15 | . . . 15 Melee . | . . . . Projectile . | . . . . AOE 15 | . . . 15 Terrain Rammed . | . . . . Walls Destroyed . | . . . . Machines Disabled . | . . . . Actions | -11 -10 -10 -9 --------- Run | Yrd Mat Min Mat Total 1637 | 49 459 638 491 Wait 2 | . . 2 . Move 1470 | 37 419 592 422 Hop 12 | . 2 4 6 Pick Up 27 | 6 14 2 5 Fast Attach 4 | 2 . . 2 Attach 20 | 4 2 2 12 Detach 6 | . 1 1 4 Swap 14 | . 4 6 4 Drop 11 | . 8 2 1 Fire 71 | . 9 27 35 Melee . | . . . . Ram . | . . . . Kick . | . . . . Crush . | . . . . Escape Stasis . | . . . . Rewire . | . . . . Trap . | . . . . Miscellaneous . | . . . . Route ------- -11/Scrapyard -10/Materials -10/Mines (discovered 2 exits: *Mat x2) -9/Materials (discovered 2 exits: *Min x2) History --------- Turn | Location | Event 8 | -11/Scrapyard | Discovered new exit (range 15) 44 | -11/Scrapyard | Entered Materials 115 | -10/Materials | Discovered new exit (range 12) 330 | -10/Materials | Build established: Mutant 336 | -10/Materials | Entered Mines 514 | -10/Mines | Discovered new exit (range 10) 515 | -10/Mines | Discovered new exit (range 17) 629 | -10/Mines | Entered Materials 629 | -9/Materials | Evolved 2 slots: Propulsion x1, Utility x1 630 | -9/Materials | Identified exit to Mines 861 | -9/Materials | Core integrity fell below 50% 889 | -9/Materials | Core integrity fell below 20% 906 | -9/Materials | Destroyed by Y-45 Defender with Heavy Assault Rifle Last Messages --------------- 00867_ U-05 Engineer lays Concrete. 00869_ Acquired Adv. Beam Cannon. 00869_ Lgt. Ion Engine destroyed. 00869_ U-05 Engineer lays Concrete. 00870_ Imp. Flight Unit destroyed. 00871_ U-05 Engineer lays Concrete. 00873_ Acquired 54 matter. 00873_ U-05 Engineer lays Concrete. 00874_ Critical hit (Burn: +37). 00874_ U-05 Engineer lays Concrete. 00889_ G-34 Mercenary destroyed. 00890_ U-05 Engineer lays Concrete. 00895_ Y-45 Defender destroyed. 00896_ Adv. Beam Cannon destroyed. 00898_ Terminal disabled. 00902_ Lgt. Ion Engine destroyed. 00904_ Overheating: Imp. Flight Unit damaged (-17). 00905_ Imp. Flight Unit destroyed. 00906_ Adv. Beam Cannon destroyed. Map ----- +----------------------------------------------------+ | ## ### # """ #????????????? | | ######### + """ #????????????? | | ???????# ### ^ " # #????????????? | | ???????# #?# ## ^ T ## #????????????? | | ???????# #?######## T########????????????? | | ???????# # + ""#??????????????????? | | ???????# #?"??????# " #??????????????????? | | ???????# #?"""????# " #??????????????????? | | ???????# #?""" ???# ######?????????????? | | ???????# # ?# #?????????????? | | ???????# # "" # ##????????????? | | ????????# #? S"" + #????????????? | | ????????# # "" # * ##????????????? | | ????????# #????????# #?????????????? | | ????????# #????????# = " ! *#?????????????? | | ????????# #????????# [ " [ #?????????????? | | ????????# #????????# * " #?????????????? | | ????????# #????????# # #?????????????? | | ????????# #????????## ###+### #?????????????? | | ????????# #?????????# ?#=%=## #?????????????? | | ????????#/#########?# ?#%="## [ #?????????????? | | ????????# ! #?# ?#[!T## ! #?????????????? | | ????????# #?# ?#Y #########?????????????? | | ????????# """ """ #?#??#ggg#?????????????????????? | | ######### """ """ #????# #?????????????????????? | | # """ """ #????# @[#?????????????????????? | | # #????#####?????????????????????? | | / #??????????????????????????????? | | ##### # #??????????????????????????????? | | ?#### ###########??????????????????????????????? | | ?#" #???????????????????????????????????????? | | ?#"" #???????????????????????????????????????? | | ?#|| #???????????????????????????????????????? | | ?#"" > #???????????????????????????????????????? | | ?#!! #???????????????????????????????????????? | | ?#"" #???????????????????????????????????????? | | ?#" #???????????????????????????????????????? | | ?#### ##########???????????????????????????????? | | ##### # #???????????????????????????????? | | + #???????????????????????????????? | | # #???????????????????????????????? | | # #???????????????????????????????? | | ##### # #???????????????????????????????? | | # # #???????????????????????????????? | | # # %=* #???????????????????????????????? | | + # [%= #############???????????????????? | | """ # # = + # #???????????????????? | | """ # ###+###### # """ #???????????????????? | | """ # ### ###### # """ #???????????????????? | | # + """ #???????????????????? | +----------------------------------------------------+ Best States ------------- Heat Dissipation 28 Energy Generation 10 Energy Capacity 125 Matter Stores 188 Matter Capacity 300 Sight Range 18 Robot Scan Range 14 Terrain Scan Density 10 Evasion (%) 63 Item Schematics ----------------- None Robot Schematics ------------------ None Fabricated ------------ Nothing Alien Tech Used ----------------- None Achievements -------------- None Challenges ------------ None Game ------ Seed ImprinterNovaCapacitor Manual? 0 Play Time 00:20:01 Cumulative 2.7 hours Start 2024.04.11 @ 17:03:16 End 2024.04.11 @ 17:22:54 Sessions 1 Manual Loads 0 Difficulty Rogue Special Mode None Game No. 5 Rogue 5 Adventurer 0 Explorer 0 Win Type - Total 0 Types 0/0/0/0/0/0/0/0/0 Lore% 2 Gallery% 7 Achievement% 7 Wizard Run 0 Options --------- Layout 1 ASCII 0 Keyboard 0 Movement Arrows Keybinds 0 Fullscreen 1 Font 16/TamsynBold Map View 50x40 Zoom Use 0% Tactical HUD 1 Map Filters NONE Filters NONE Steam SD RUN: 98361398-db58-45b3-9c1d-fab5f89a0c15